lending/lending_fUSD_20240411
["ID","MTS","AMOUNT","RATE_DAILY","PERIOD"]
[322177465,1712863903004,-500.0,0.00029315,2]
[322177466,1712863903014,-500.0,0.00029315,2]
[322177467,1712863903023,-518.01325301,0.00029315,2]
[322177468,1712863903033,-500.0,0.00029315,2]
[322177469,1712863903043,-539.25,0.00029315,2]
[322177470,1712863903053,-956.96,0.00029315,2]
[322177471,1712863903063,-730.66,0.00029315,2]
[322177472,1712863903072,-500.0,0.00029315,2]
[322177473,1712863903082,-520.74,0.00029315,2]
[322177474,1712863903093,-500.0,0.00029315,2]
[322177475,1712863903103,-500.0,0.00029315,2]
[322177476,1712863903113,-1271.89,0.00029315,2]
[322177477,1712863903123,-582.63,0.00029315,2]
[322177478,1712863903133,-500.0,0.00029315,2]
[322177479,1712863903145,-661.97,0.00029315,2]
[322177480,1712863903155,-500.0,0.00029315,2]
[322177481,1712863903165,-500.0,0.00029315,2]
[322177482,1712863903175,-500.0,0.00029315,2]
[322177483,1712863903185,-598.1,0.00029315,2]
[322177484,1712863903197,-500.0,0.00029315,2]
[322177485,1712863903208,-500.0,0.00029315,2]
[322177486,1712863903218,-500.0,0.00029315,2]
[322177487,1712863903229,-500.0,0.00029315,2]
[322177488,1712863903239,-735.6,0.00029315,2]
[322177489,1712863903248,-500.0,0.00029315,2]
[322177490,1712863903260,-395.79781772,0.00029315,2]
[322177491,1712863903270,-500.0,0.00029315,2]
[322177492,1712863903280,-724.36,0.00029315,2]
[322177493,1712863903290,-500.0,0.00029315,2]
[322177494,1712863903301,-563.661707,0.00029315,2]
[322177495,1712863903311,-500.0,0.00029315,2]
[322177496,1712863903322,-500.0,0.00029315,2]
[322177497,1712863903334,-433.41482688,0.00029315,2]
[322177498,1712863903345,-662.41,0.00029315,2]
[322177499,1712863903357,-500.0,0.00029315,2]
[322177500,1712863903368,-500.0,0.00029315,2]
[322177501,1712863903380,-500.0,0.00029315,2]
[322177502,1712863903390,-645.77,0.00029315,2]
[322177503,1712863903401,-500.0,0.00029315,2]
[322177504,1712863903411,-630.18,0.00029315,2]
[322177505,1712863903421,-587.64966902,0.00029315,2]
[322177506,1712863903431,-538.93,0.00029315,2]
[322177507,1712863903441,-513.73206284,0.00029315,2]
[322177508,1712863903454,-1170.3,0.00029315,2]
[322177509,1712863903465,-500.0,0.00029315,2]
[322177510,1712863903477,-500.0,0.00029315,2]
[322177511,1712863903487,-500.0,0.00029315,2]
[322177512,1712863903498,-500.0,0.00029315,2]
[322177513,1712863903508,-500.0,0.00029315,2]
[322177514,1712863903518,-622.48,0.00029315,2]
[322177515,1712863903529,-500.0,0.00029315,2]
[322177516,1712863903539,-500.0,0.00029315,2]
[322177517,1712863903551,-308.43400691,0.00029315,2]
[322177518,1712863903562,-881.06,0.00029315,2]
[322177519,1712863903571,-776.07,0.00029315,2]
[322177520,1712863903581,-500.0,0.00029315,2]
[322177521,1712863903591,-500.0,0.00029315,2]
[322177522,1712863903606,-500.0,0.00029315,2]
[322177523,1712863903617,-500.0,0.00029315,2]
[322177524,1712863903628,-500.0,0.00029315,2]
[322177525,1712863903639,-619.23,0.00029315,2]
[322177526,1712863903650,-609.85,0.00029315,2]
[322177527,1712863903660,-500.0,0.00029315,2]
[322177528,1712863903670,-979.3,0.00029315,2]
[322177529,1712863903681,-300.0,0.00029315,2]
[322177530,1712863903693,-500.0,0.00029315,2]
[322177531,1712863903704,-848.99,0.00029315,2]
[322177532,1712863903714,-500.0,0.00029315,2]
[322177533,1712863903724,-500.0,0.00029315,2]
[322177534,1712863903733,-561.42,0.00029315,2]
[322177535,1712863903743,-556.26,0.00029315,2]
[322177536,1712863903754,-500.0,0.00029315,2]
[322177537,1712863903764,-750.5,0.00029315,2]
[322177538,1712863903773,-795.39,0.00029315,2]
[322177539,1712863903785,-500.0,0.00029315,2]
[322177540,1712863903795,-154.01,0.00029315,2]
[322177541,1712863903805,-500.0,0.00029315,2]
[322177542,1712863903816,-821.11,0.00029315,2]
[322177543,1712863903826,-500.0,0.00029315,2]
[322177544,1712863903837,-520.41,0.00029315,2]
[322177545,1712863903848,-500.0,0.00029315,2]
[322177546,1712863903858,-500.0,0.00029315,2]
[322177547,1712863903867,-649.6,0.00029315,2]
[322177548,1712863903879,-855.37,0.00029315,2]
[322177549,1712863903889,-500.0,0.00029315,2]
[322177550,1712863903899,-649.39,0.00029315,2]
[322177551,1712863903909,-832.74,0.00029315,2]
[322177552,1712863903920,-500.0,0.00029315,2]
[322177553,1712863904140,-500.0,0.00029315,2]
[322177554,1712863904150,-2180.86,0.00029315,2]
[322177555,1712863904160,-1399.6,0.00029315,2]
[322177556,1712863904170,-500.0,0.00029315,2]
[322177557,1712863904179,-500.0,0.00029315,2]
[322177558,1712863904189,-626.17,0.00029315,2]
[322177559,1712863904201,-1778.24,0.00029315,2]
[322177560,1712863904212,-1158.17,0.00029315,2]
[322177561,1712863904224,-500.0,0.00029315,2]
[322177562,1712863904235,-500.0,0.00029315,2]
[322177563,1712863904245,-500.0,0.00029315,2]
[322177564,1712863904255,-638.17,0.00029315,2]
[322177565,1712863904267,-542.85,0.00029315,2]
[322177566,1712863904276,-500.0,0.00029315,2]
[322177567,1712863904286,-1858.63,0.00029315,2]
[322177568,1712863904297,-500.0,0.00029315,2]
[322177569,1712863904306,-500.0,0.00029315,2]
[322177570,1712863904316,-776.82,0.00029315,2]
[322177571,1712863904326,-500.0,0.00029315,2]
[322177572,1712863904335,-524.59,0.00029315,2]
[322177573,1712863904345,-500.0,0.00029315,2]
[322177574,1712863904357,-500.0,0.00029315,2]
[322177575,1712863904366,-500.0,0.00029315,2]
[322177576,1712863904376,-539.06,0.00029315,2]
[322177577,1712863904388,-500.0,0.00029315,2]
[322177578,1712863904397,-1089.41,0.00029315,2]
[322177579,1712863904407,-1111.79,0.00029315,2]
[322177580,1712863904417,-500.0,0.00029315,2]
[322177581,1712863904429,-656.89,0.00029315,2]
[322177582,1712863904438,-500.0,0.00029315,2]
[322177583,1712863904448,-156.140992,0.00029315,7]
[322177584,1712863904458,-500.0,0.00029315,2]
[322177585,1712863904469,-579.35531166,0.00029315,2]
[322177586,1712863904478,-156.140992,0.00029315,7]
[322177587,1712863904488,-854.73,0.00029315,2]
[322177588,1712863904497,-500.0,0.00029315,2]
[322177589,1712863904506,-2876.44,0.00029315,2]
[322177590,1712863904515,-590.9,0.00029315,2]
[322177591,1712863904525,-1195.47,0.00029315,2]
[322177592,1712863904534,-1802.49,0.00029315,2]
[322177593,1712863904543,-500.0,0.00029315,2]
[322177594,1712863904552,-500.0,0.00029315,2]
[322177595,1712863904561,-500.0,0.00029315,2]
[322177596,1712863904570,-687.99,0.00029315,2]
[322177597,1712863904579,-688.71,0.00029315,2]
[322177598,1712863904589,-500.0,0.00029315,2]
[322177599,1712863904601,-500.0,0.00029315,2]
[322177600,1712863904610,-812.38,0.00029315,2]
[322177601,1712863904620,-500.0,0.00029315,2]
[322177602,1712863904629,-500.0,0.00029315,2]
[322177603,1712863904638,-911.26,0.00029315,2]
[322177604,1712863904647,-1387.07,0.00029315,2]
[322177605,1712863904656,-1238.46,0.00029315,2]
[322177606,1712863904666,-701.45,0.00029315,2]
[322177607,1712863904677,-500.0,0.00029315,2]
[322177608,1712863904687,-1637.96,0.00029315,2]
[322177609,1712863904696,-500.0,0.00029315,2]
[322177610,1712863904706,-500.0,0.00029315,2]
[322177611,1712863904715,-432.28803382,0.00029315,2]
[322177612,1712863904724,-500.0,0.00029315,2]
[322177613,1712863904733,-727.26,0.00029315,2]
[322177614,1712863904742,-500.0,0.00029315,2]
[322177615,1712863904751,-500.0,0.00029315,2]
[322177616,1712863904761,-951.93,0.00029315,2]
[322177617,1712863904771,-912.94,0.00029315,2]
[322177618,1712863904780,-1360.26,0.00029315,2]
[322177619,1712863904789,-1633.79,0.00029315,2]
[322177620,1712863904799,-571.0,0.00029315,2]
[322177621,1712863904807,-500.0,0.00029315,2]
[322177622,1712863904817,-1497.81,0.00029315,2]
[322177623,1712863904826,-500.0,0.00029315,2]
[322177624,1712863904835,-1592.01,0.00029315,2]
[322177625,1712863904845,-1649.12,0.00029315,2]
[322177626,1712863904854,-980.99,0.00029315,2]
[322177627,1712863904864,-500.0,0.00029315,2]
[322177628,1712863904873,-500.0,0.00029315,2]
[322177629,1712863904882,-969.84,0.00029315,2]
[322177630,1712863904892,-500.0,0.00029315,2]
[322177631,1712863904902,-500.0,0.00029315,2]
[322177632,1712863904911,-500.0,0.00029315,2]
[322177633,1712863904921,-500.0,0.00029315,2]
[322177634,1712863904930,-1761.18,0.00029315,2]
[322177635,1712863904939,-1243.08,0.00029315,2]
[322177636,1712863904948,-1689.77,0.00029315,2]
[322177637,1712863904958,-500.0,0.00029315,2]
[322177638,1712863904969,-500.0,0.00029315,2]
[322177639,1712863904979,-1026.47,0.00029315,2]
[322177640,1712863904989,-500.0,0.00029315,2]
[322177641,1712863904998,-910.91,0.00029315,2]
[322177642,1712863905007,-500.0,0.00029315,2]
[322177643,1712863905018,-500.0,0.00029315,2]
[322177644,1712863905027,-1567.65,0.00029315,2]
[322177645,1712863905036,-500.0,0.00029315,2]
[322177646,1712863905047,-786.72,0.00029315,2]
[322177647,1712863905057,-1996.86,0.00029315,2]
[322177648,1712863905066,-1085.94,0.00029315,2]
[322177649,1712863905075,-500.0,0.00029315,2]
[322177650,1712863905085,-500.0,0.00029315,2]
[322177651,1712863905095,-816.08,0.00029315,2]
[322177652,1712863905104,-1561.86,0.00029315,2]
[322177653,1712863905113,-1269.43,0.00029315,2]
[322177654,1712863905122,-1877.69,0.00029315,2]
[322177655,1712863905132,-1972.42,0.00029315,2]
[322177656,1712863905141,-488.80012579,0.00029315,2]
[322177657,1712863905151,-2113.97,0.00029315,2]
[322177658,1712863905162,-966.14,0.00029315,2]
[322177659,1712863905171,-500.0,0.00029315,2]
[322177660,1712863905180,-761.76,0.00029315,2]
[322177661,1712863905189,-500.0,0.00029315,2]
[322177662,1712863905198,-1089.8,0.00029315,2]
[322177663,1712863905208,-184.30980938,0.00029315,2]
[322177664,1712863905217,-2037.49,0.00029315,2]
[322177665,1712863905226,-1173.13,0.00029315,2]
[322177666,1712863905235,-500.0,0.00029315,2]
[322177667,1712863905244,-793.23,0.00029315,2]
[322177668,1712863905253,-500.0,0.00029315,2]
[322177669,1712863905262,-2726.32,0.00029315,2]
[322177670,1712863905274,-500.0,0.00029315,2]
[322177671,1712863905283,-692.78,0.00029315,2]
[322177672,1712863905293,-746.58,0.00029315,2]
[322177673,1712863905303,-1198.98,0.00029315,2]
[322177674,1712863905313,-1215.62,0.00029315,2]
[322177675,1712863905322,-1357.74,0.00029315,2]
[322177676,1712863905331,-1787.05,0.00029315,2]
[322177677,1712863905341,-773.26,0.00029315,2]
[322177678,1712863905351,-500.0,0.00029315,2]
[322177679,1712863905361,-500.0,0.00029315,2]
[322177680,1712863905371,-1160.82,0.00029315,2]
[322177681,1712863905380,-856.28,0.00029315,2]
[322177682,1712863905390,-2284.7,0.00029315,2]
[322177683,1712863905399,-500.0,0.00029315,2]
[322177684,1712863905408,-500.0,0.00029315,2]
[322177685,1712863905417,-1712.28,0.00029315,2]
[322177686,1712863905427,-1447.07,0.00029315,2]
[322177687,1712863905436,-500.0,0.00029315,2]
[322177688,1712863905445,-1043.02,0.00029315,2]
[322177689,1712863905455,-999.23,0.00029315,2]
[322177690,1712863905464,-380.36359717,0.00029315,2]
[322177691,1712863905474,-880.42,0.00029315,2]
[322177692,1712863905483,-500.0,0.00029315,2]
[322177693,1712863905493,-1769.53,0.00029315,2]
[322177694,1712863905502,-909.93,0.00029315,2]
[322177695,1712863905511,-500.0,0.00029315,2]
[322177696,1712863905521,-731.37,0.00029315,2]
[322177697,1712863905531,-563.4,0.00029315,2]
[322177698,1712863905540,-2584.91,0.00029315,2]
[322177699,1712863905549,-500.0,0.00029315,2]
[322177700,1712863905559,-500.0,0.00029315,2]
[322177701,1712863905568,-500.0,0.00029315,2]
[322177702,1712863905577,-500.0,0.00029315,2]
[322177703,1712863905587,-836.78,0.00029315,2]
[322177704,1712863905599,-500.0,0.00029315,2]
[322177705,1712863905609,-500.0,0.00029315,2]
[322177706,1712863905618,-500.0,0.00029315,2]
[322177707,1712863905627,-500.0,0.00029315,2]
[322177708,1712863905638,-1928.08,0.00029315,2]
[322177709,1712863905647,-1054.17,0.00029315,2]
[322177710,1712863905656,-500.0,0.00029315,2]
[322177711,1712863905666,-1287.39,0.00029315,2]
[322177712,1712863905676,-1131.99,0.00029315,2]
[322177713,1712863905685,-500.0,0.00029315,2]
[322177714,1712863905694,-670.56,0.00029315,2]
[322177715,1712863905703,-1218.52,0.00029315,2]
[322177716,1712863905713,-592.73744851,0.00029315,2]
[322177717,1712863905722,-500.0,0.00029315,2]
[322177718,1712863905731,-500.0,0.00029315,2]
[322177719,1712863905740,-500.0,0.00029315,2]
[322177720,1712863905750,-3023.85,0.00029315,2]
[322177721,1712863905759,-1925.75,0.00029315,2]
[322177722,1712863905769,-1413.49,0.00029315,2]
[322177723,1712863905778,-1314.42,0.00029315,2]
[322177724,1712863905787,-946.59,0.00029315,2]
[322177725,1712863905797,-500.0,0.00029315,2]
[322177726,1712863905807,-500.0,0.00029315,2]
[322177727,1712863905816,-1299.32,0.00029315,2]
[322177728,1712863905826,-657.55,0.00029315,2]
[322177729,1712863905836,-1451.55,0.00029315,2]
[322177730,1712863905846,-1299.55,0.00029315,2]
[322177731,1712863905855,-1859.86,0.00029315,2]
[322177732,1712863905865,-500.0,0.00029315,2]
[322177733,1712863905874,-500.0,0.00029315,2]
[322177734,1712863905884,-500.0,0.00029315,2]
[322177735,1712863905893,-1118.53,0.00029315,2]
[322177736,1712863905903,-500.0,0.00029315,2]
[322177737,1712863905913,-500.0,0.00029315,2]
[322177738,1712863905922,-500.0,0.00029315,2]
[322177739,1712863905931,-500.0,0.00029315,2]
[322177740,1712863905941,-690.5,0.00029315,2]
[322177741,1712863905951,-820.46,0.00029315,2]
[322177742,1712863905960,-2701.17,0.00029315,2]
[322177743,1712863905969,-1746.83,0.00029315,2]
[322177744,1712863905979,-1556.05,0.00029315,2]
[322177745,1712863905988,-621.6012929,0.00029315,2]
[322177746,1712863905997,-500.0,0.00029315,2]
[322177747,1712863906006,-500.0,0.00029315,2]
[322177748,1712863906015,-1236.35,0.00029315,2]
[322177749,1712863906024,-500.0,0.00029315,2]
[322177750,1712863906034,-1904.13,0.00029315,2]
[322177751,1712863906044,-1836.84,0.00029315,2]
[322177752,1712863906054,-601.98458615,0.00029315,2]
[322177753,1712863906064,-500.0,0.00029315,2]
[322177754,1712863906074,-2054.27,0.00029315,2]
[322177755,1712863906083,-1139.8,0.00029315,2]
[322177756,1712863906093,-500.0,0.00029315,2]
[322177757,1712863906103,-500.0,0.00029315,2]
[322177758,1712863906112,-1133.86,0.00029315,2]
[322177759,1712863906121,-500.0,0.00029315,2]
[322177760,1712863906131,-500.0,0.00029315,2]
[322177761,1712863906140,-1519.24,0.00029315,2]
[322177762,1712863906150,-1150.3,0.00029315,2]
[322177763,1712863906159,-500.0,0.00029315,2]
[322177764,1712863906168,-37031.74,0.00029315,2]
[322177765,1712863906177,-500.0,0.00029315,2]
[322177766,1712863906186,-500.0,0.00029315,2]
[322177767,1712863906195,-2252.02,0.00029315,2]
[322177768,1712863906205,-1665.9,0.00029315,2]
[322177769,1712863906214,-2019.36,0.00029315,2]
[322177770,1712863906223,-500.0,0.00029315,2]
[322177771,1712863906232,-500.0,0.00029315,2]
[322177772,1712863906241,-500.0,0.00029315,2]
[322177773,1712863906250,-3193.7,0.00029315,2]
[322177774,1712863906260,-978.88,0.00029315,2]
[322177775,1712863906270,-975.54,0.00029315,2]
[322177776,1712863906280,-805.26,0.00029315,2]
[322177777,1712863906289,-1224.29,0.00029315,2]
[322177778,1712863906298,-500.0,0.00029315,2]
[322177779,1712863906307,-672.73,0.00029315,2]
[322177780,1712863906316,-500.0,0.00029315,2]
[322177781,1712863906325,-2055.0,0.00029315,2]
[322177782,1712863906334,-1014.43,0.00029315,2]
[322177783,1712863906344,-500.0,0.00029315,2]
[322177784,1712863906353,-638.51,0.00029315,2]
[322177785,1712863906362,-1372.0,0.00029315,2]
[322177786,1712863906372,-941.68,0.00029315,2]
[322177787,1712863906381,-3008.91,0.00029315,2]
[322177788,1712863906390,-2757.19,0.00029315,2]
[322177789,1712863906465,-500.0,0.00029315,2]
[322177790,1712863906475,-500.0,0.00029315,2]
[322177791,1712863906484,-2271.32,0.00029315,2]
[322177792,1712863906493,-687.63,0.00029315,2]
[322177793,1712863906503,-3074.05,0.00029315,2]
[322177794,1712863906512,-1265.86,0.00029315,2]
[322177795,1712863906521,-500.0,0.00029315,2]
[322177796,1712863906531,-500.0,0.00029315,2]
[322177797,1712863906540,-500.0,0.00029315,2]
[322177798,1712863906549,-1938.09,0.00029315,2]
[322177799,1712863906558,-4379.49,0.00029315,2]
[322177800,1712863906567,-1283.37,0.00029315,2]
[322177801,1712863906576,-1885.35,0.00029315,2]
[322177802,1712863906585,-4346.86,0.00029315,2]
[322177803,1712863906597,-1155.02,0.00029315,2]
[322177804,1712863906608,-500.0,0.00029315,2]
[322177805,1712863906621,-53501.75,0.00029315,2]
[322177806,1712863906629,-2310.28,0.00029315,2]
[322177807,1712863906640,-1799.15,0.00029315,2]
[322177808,1712863906649,-1949.19,0.00029315,2]
[322177809,1712863906658,-1577.48,0.00029315,2]
[322177810,1712863906667,-522.11,0.00029315,2]
[322177811,1712863906677,-1254.45,0.00029315,2]
[322177812,1712863906686,-2414.38,0.00029315,2]
[322177813,1712863906696,-18239.28,0.00029315,2]
[322177814,1712863906705,-500.0,0.00029315,2]
[322177815,1712863906714,-1269.78,0.00029315,2]
[322177816,1712863906723,-907.51,0.00029315,2]
[322177817,1712863906732,-4087.64,0.00029315,2]
[322177818,1712863906741,-4035.48,0.00029315,2]
[322177819,1712863906750,-1472.75,0.00029315,2]
[322177820,1712863906760,-569.15,0.00029315,2]
[322177821,1712863906770,-500.0,0.00029315,2]
[322177822,1712863906779,-500.0,0.00029315,2]
[322177823,1712863906787,-3443.33,0.00029315,2]
[322177824,1712863906797,-500.0,0.00029315,2]
[322177825,1712863906807,-715.43,0.00029315,2]
[322177826,1712863906816,-1468.65,0.00029315,2]
[322177827,1712863906825,-4438.94,0.00029315,2]
[322177828,1712863906835,-500.0,0.00029315,2]
[322177829,1712863906844,-500.0,0.00029315,2]
[322177830,1712863906854,-947.32,0.00029315,2]
[322177831,1712863906863,-1460.88,0.00029315,2]
[322177832,1712863906873,-1078.14,0.00029315,2]
[322177833,1712863906882,-500.0,0.00029315,2]
[322177834,1712863906891,-4053.95,0.00029315,2]
[322177835,1712863906900,-742.27,0.00029315,2]
[322177836,1712863906912,-500.0,0.00029315,2]
[322177837,1712863906923,-500.0,0.00029315,2]
[322177838,1712863906933,-1767.47,0.00029315,2]
[322177839,1712863906942,-785.41,0.00029315,2]
[322177840,1712863906951,-9803.96,0.00029315,2]
[322177841,1712863906961,-1559.45,0.00029315,2]
[322177842,1712863906971,-12452.77,0.00029315,2]
[322177843,1712863906980,-500.0,0.00029315,2]
[322177844,1712863906989,-6184.21,0.00029315,2]
[322177845,1712863906999,-696.39,0.00029315,2]
[322177846,1712863907008,-586.01,0.00029315,2]
[322177847,1712863907018,-4243.64,0.00029315,2]
[322177848,1712863907027,-500.0,0.00029315,2]
[322177849,1712863907036,-1034.64,0.00029315,2]
[322177850,1712863907046,-500.0,0.00029315,2]
[322177851,1712863907055,-2762.12,0.00029315,2]
[322177852,1712863907065,-2525.19,0.00029315,2]
[322177853,1712863907075,-3638.97,0.00029315,2]
[322177854,1712863907084,-809.39,0.00029315,2]
[322177855,1712863907094,-6755.28,0.00029315,2]
[322177856,1712863907104,-3313.18,0.00029315,2]
[322177857,1712863907114,-3298.66,0.00029315,2]
[322177858,1712863907123,-2090.96,0.00029315,2]
[322177859,1712863907138,-3316.05,0.00029315,2]
[322177860,1712863907148,-500.0,0.00029315,2]
[322177861,1712863907158,-2581.64,0.00029315,2]
[322177862,1712863907167,-500.0,0.00029315,2]
[322177863,1712863907176,-500.0,0.00029315,2]
[322177864,1712863907186,-2873.47,0.00029315,2]
[322177865,1712863907195,-2480.74,0.00029315,2]
[322177866,1712863907206,-1598.84,0.00029315,2]
[322177867,1712863907216,-500.0,0.00029315,2]
[322177868,1712863907226,-1789.61,0.00029315,2]
[322177869,1712863907239,-14422.58,0.00029315,2]
[322177870,1712863907248,-5953.17,0.00029315,2]
[322177871,1712863907257,-1652.71,0.00029315,2]
[322177872,1712863907277,-737.57,0.00029315,2]
[322177873,1712863907287,-535.11726071,0.00029315,2]
[322177874,1712863907296,-647.051404,0.00029315,2]
[322177875,1712863907306,-1619.98,0.00029315,2]
[322177876,1712863907315,-2584.49,0.00029315,2]
[322177877,1712863907324,-2631.69,0.00029315,2]
[322177878,1712863907333,-7074.56,0.00029315,2]
[322177879,1712863907341,-10781.75,0.00029315,2]
[322177880,1712863907352,-2141.81,0.00029315,2]
[322177881,1712863907361,-2228.38,0.00029315,2]
[322177882,1712863907370,-547.08,0.00029315,2]
[322177883,1712863907379,-1182.41,0.00029315,2]
[322177884,1712863907388,-1306.7,0.00029315,2]
[322177885,1712863907397,-2162.99,0.00029315,2]
[322177886,1712863907407,-1593.8,0.00029315,2]
[322177887,1712863907415,-500.0,0.00029315,2]
[322177888,1712863907424,-1388.34,0.00029315,2]
[322177889,1712863907434,-4975.16,0.00029315,2]
[322177890,1712863907442,-577.09,0.00029315,2]
[322177891,1712863907451,-500.0,0.00029315,2]
[322177892,1712863907461,-500.0,0.00029315,2]
[322177893,1712863907470,-4052.06,0.00029315,2]
[322177894,1712863907481,-3398.13,0.00029315,2]
[322177895,1712863907490,-500.0,0.00029315,2]
[322177896,1712863907499,-3587.71,0.00029315,2]
[322177897,1712863907509,-2718.79,0.00029315,2]
[322177898,1712863907518,-538.59,0.00029315,2]
[322177899,1712863907526,-500.0,0.00029315,2]
[322177900,1712863907535,-643.87,0.00029315,2]
[322177901,1712863907545,-1944.58,0.00029315,2]
[322177902,1712863907554,-3239.59,0.00029315,2]
[322177903,1712863907563,-640.82,0.00029315,2]
[322177904,1712863907572,-741.23,0.00029315,2]
[322177905,1712863907582,-1379.62,0.00029315,2]
[322177906,1712863907591,-2450.14,0.00029315,2]
[322177907,1712863907607,-500.0,0.00029315,2]
[322177908,1712863907617,-1028.85,0.00029315,2]
[322177909,1712863907627,-5944.87,0.00029315,2]
[322177910,1712863907639,-2132.08,0.00029315,2]
[322177911,1712863907650,-1280.64,0.00029315,2]
[322177912,1712863907659,-1028.51,0.00029315,2]
[322177913,1712863907671,-4562.38,0.00029315,2]
[322177914,1712863907680,-7074.77,0.00029315,2]
[322177915,1712863907690,-6825.13,0.00029315,2]
[322177916,1712863907700,-3134.26,0.00029315,2]
[322177917,1712863907710,-2368.31,0.00029315,2]
[322177918,1712863907720,-157.61279471,0.00029315,2]
[322177919,1712863907729,-1225.72,0.00029315,2]
[322177920,1712863907739,-15352.07,0.00029315,2]
[322177921,1712863907749,-1114.66,0.00029315,2]
[322177922,1712863907758,-500.0,0.00029315,2]
[322177923,1712863907767,-1085.38,0.00029315,2]
[322177924,1712863907778,-3289.28,0.00029315,2]
[322177925,1712863907790,-3479.62,0.00029315,2]
[322177926,1712863907799,-757.5,0.00029315,2]
[322177927,1712863907807,-1240.17,0.00029315,2]
[322177928,1712863907816,-4609.28,0.00029315,2]
[322177929,1712863907826,-586.73,0.00029315,2]
[322177930,1712863907835,-776.88,0.00029315,2]
[322177931,1712863907844,-1626.2,0.00029315,2]
[322177932,1712863907853,-500.0,0.00029315,2]
[322177933,1712863907862,-20099.39,0.00029315,2]
[322177934,1712863907872,-851.06,0.00029315,2]
[322177935,1712863907881,-1308.93,0.00029315,2]
[322177936,1712863907890,-25741.65,0.00029315,2]
[322177937,1712863907900,-3018.25,0.00029315,2]
[322177938,1712863907909,-2048.9,0.00029315,2]
[322177939,1712863907923,-3588.33,0.00029315,2]
[322177940,1712863907934,-3107.63,0.00029315,2]
[322177941,1712863907944,-1051.67,0.00029315,2]
[322177942,1712863907953,-2374.36,0.00029315,2]
[322177943,1712863907964,-500.0,0.00029315,2]
[322177944,1712863907973,-1592.05,0.00029315,2]
[322177945,1712863907985,-19452.39,0.00029315,2]
[322177946,1712863907994,-505.91,0.00029315,2]
[322177947,1712863908003,-2534.14,0.00029315,2]
[322177948,1712863908012,-527.81,0.00029315,2]
[322177949,1712863908022,-500.0,0.00029315,2]
[322177950,1712863908031,-3020.3,0.00029315,2]
[322177951,1712863908041,-7446.86,0.00029315,2]
[322177952,1712863908051,-1495.54,0.00029315,2]
[322177953,1712863908060,-500.0,0.00029315,2]
[322177954,1712863908070,-2700.11,0.00029315,2]
[322177955,1712863908079,-614.49,0.00029315,2]
[322177956,1712863908089,-1142.49,0.00029315,2]
[322177957,1712863908099,-8843.49,0.00029315,2]
[322177958,1712863908109,-682.27,0.00029315,2]
[322177959,1712863908123,-2651.73,0.00029315,2]
[322177960,1712863908132,-18815.4,0.00029315,2]
[322177961,1712863908141,-54176.01,0.00029315,2]
[322177962,1712863908151,-3784.62,0.00029315,2]
[322177963,1712863908160,-1593.95,0.00029315,2]
[322177964,1712863908169,-8906.82,0.00029315,2]